bitfinex-derivatives/quotes_BTCF0:USTF0_20241015
["timestamp","ask_amount","ask_price","bid_price","bid_amount"]
[1729019634557,0.074769,66882.0,66881.0,0.001]
[1729019634949,0.074769,66882.0,66881.0,0.005]
[1729019635450,0.074767,66885.0,66881.0,0.33577]
[1729019635956,1.40994946,66890.0,66881.0,0.33577]
[1729019636162,0.003,66882.0,66881.0,0.33477]
[1729019636754,0.074768,66883.0,66881.0,0.33477]
[1729019637061,0.074769,66882.0,66881.0,0.33477]
[1729019637449,0.074769,66882.0,66881.0,0.43199115]
[1729019637661,0.074769,66882.0,66881.0,0.09722115]
[1729019638150,1.123329,66882.0,66879.0,0.436594]
[1729019638351,0.074771,66880.0,66879.0,0.074434]
[1729019638550,0.074778,66874.0,66873.0,0.08915856]
[1729019638756,1.735578,66874.0,66873.0,0.08915856]
[1729019638959,1.374778,66874.0,66873.0,0.08915856]
[1729019639360,0.074784,66869.0,66867.0,0.074786]
[1729019639551,0.074786,66867.0,66866.0,0.3608]
[1729019640258,0.074779,66873.0,66866.0,0.435586]
[1729019640464,1.04922454,66874.0,66867.0,0.074785]
[1729019640950,0.074785,66868.0,66867.0,0.074785]
[1729019641566,0.3608,66889.0,66877.0,0.074774]
[1729019641859,0.074768,66883.0,66880.0,0.074771]
[1729019642056,1.04,66882.0,66881.0,0.33477]
[1729019642257,0.00224323,66891.0,66890.0,0.07476]
[1729019642961,0.07476,66890.0,66888.0,0.26]
[1729019643156,0.074761,66889.0,66888.0,0.26]
[1729019643357,0.074763,66888.0,66887.0,0.3608]
[1729019644164,1.114763,66888.0,66887.0,0.3608]
[1729019645167,1.116763,66888.0,66887.0,0.3618]
[1729019645867,1.116763,66888.0,66877.0,0.089735]
[1729019645868,0.074774,66878.0,66877.0,0.01496]
[1729019646072,0.074785,66868.0,66867.0,0.3608]
[1729019647069,1.114785,66868.0,66867.0,0.3608]
[1729019648075,1.114785,66868.0,66867.0,0.3708]
[1729019648668,1.114785,66868.0,66867.0,0.3778]
[1729019649664,1.12365937,66868.0,66867.0,0.3778]
[1729019653373,1.12365937,66868.0,66867.0,0.017]
[1729019653563,1.16040193,66868.0,66867.0,0.017]
[1729019654072,0.074789,66864.0,66863.0,0.01496]
[1729019654271,0.37153156,66864.0,66863.0,0.01496]
[1729019654764,1.41153156,66864.0,66863.0,0.01496]
[1729019654961,1.374789,66864.0,66863.0,0.01496]
[1729019655270,1.374789,66864.0,66863.0,0.02596]
[1729019655669,1.374789,66864.0,66863.0,0.03996]
[1729019657268,1.114789,66864.0,66863.0,0.03996]
[1729019657968,1.114789,66864.0,66851.0,0.0746317]
[1729019657969,2.16,66864.0,66851.0,0.0746317]
[1729019658175,2.16,66864.0,66843.0,0.3608]
[1729019658176,0.26,66852.0,66843.0,0.3608]
[1729019658364,0.334812,66844.0,66843.0,0.3608]
[1729019658565,0.07482,66837.0,66836.0,0.01497]
[1729019658762,0.26,66837.0,66836.0,0.01497]
[1729019659165,0.33482,66837.0,66836.0,0.01497]
[1729019659767,1.37482,66837.0,66836.0,0.01497]
[1729019660382,1.11482,66837.0,66836.0,0.01497]
[1729019660968,1.11582,66837.0,66836.0,0.02097]
[1729019662376,1.11682,66837.0,66836.0,0.02197]
[1729019664467,1.042,66837.0,66836.0,0.02197]
[1729019664672,1.11682,66837.0,66836.0,0.119678]
[1729019666179,1.11682,66837.0,66836.0,0.02197]
[1729019667372,1.11682,66837.0,66836.0,0.1195693]
[1729019668376,1.11682,66837.0,66836.0,0.20910683]
[1729019668875,1.11682,66837.0,66836.0,0.1195693]
[1729019671576,0.334797,66858.0,66836.0,1.19674143]
[1729019671771,0.074805,66850.0,66846.0,0.074809]
[1729019671982,1.114805,66850.0,66847.0,0.0975993]
[1729019672181,1.114805,66850.0,66848.0,0.0975993]
[1729019672385,1.114805,66850.0,66849.0,0.0975993]
[1729019673174,1.117805,66850.0,66849.0,0.0975993]
[1729019673586,1.114805,66850.0,66849.0,0.0975993]
[1729019673775,1.119805,66850.0,66849.0,0.0975993]
[1729019674183,1.045,66850.0,66849.0,0.1724053]
[1729019674375,1.045,66850.0,66849.0,0.26199249]
[1729019674681,0.012,66850.0,66849.0,0.1734053]
[1729019675285,0.012,66850.0,66849.0,0.0985993]
[1729019675587,0.346805,66850.0,66849.0,0.0985993]
[1729019676285,0.086805,66850.0,66849.0,0.0985993]
[1729019676482,0.086805,66850.0,66849.0,0.18814826]
[1729019676988,0.086805,66850.0,66849.0,0.0985993]
[1729019677385,0.086805,66850.0,66849.0,0.1881379]
[1729019677784,0.086805,66850.0,66849.0,0.18813666]
[1729019677986,1.126805,66850.0,66849.0,0.18813666]
[1729019678593,1.126805,66850.0,66849.0,0.0985993]
[1729019679481,1.126805,66850.0,66849.0,0.18813666]
[1729019679889,1.126805,66850.0,66849.0,0.18748825]
[1729019680389,1.126805,66850.0,66849.0,0.09795089]
[1729019680776,1.126805,66850.0,66849.0,0.18748825]
[1729019683083,1.126805,66850.0,66849.0,0.09795089]
[1729019683791,1.296805,66850.0,66849.0,0.09795089]
[1729019684694,1.126805,66850.0,66849.0,0.09795089]
[1729019686190,1.296805,66850.0,66849.0,0.09795089]
[1729019686980,2.706365,66850.0,66846.0,0.02728341]
[1729019687290,0.074815,66841.0,66839.0,0.08953736]
[1729019687588,1.126805,66850.0,66840.0,0.11576476]
[1729019687891,1.052,66850.0,66847.0,0.08955451]
[1729019688079,1.052,66850.0,66849.0,0.16436051]
[1729019688285,1.052,66850.0,66849.0,0.074806]
[1729019688677,1.047,66850.0,66849.0,0.074806]
[1729019689091,1.042,66850.0,66849.0,0.074806]
[1729019689283,1.046,66850.0,66849.0,0.16434951]
[1729019689482,1.049,66850.0,66849.0,0.16434951]
[1729019689690,1.049,66850.0,66849.0,0.074806]
[1729019689889,1.049,66850.0,66849.0,0.244806]
[1729019690088,1.045,66850.0,66849.0,0.245806]
[1729019690297,1.052,66850.0,66849.0,0.245806]
[1729019691787,1.126805,66850.0,66849.0,0.245806]
[1729019692188,1.126805,66850.0,66849.0,0.075806]
[1729019692390,1.052,66850.0,66849.0,0.075806]
[1729019692888,0.074795,66860.0,66849.0,0.075806]
[1729019692889,0.074786,66868.0,66853.0,0.074802]
[1729019693091,0.07479,66864.0,66863.0,0.074789]
[1729019693293,0.074791,66863.0,66861.0,0.074792]
[1729019693896,0.074793,66861.0,66860.0,0.17]
[1729019694096,0.074793,66861.0,66860.0,0.074794]
[1729019694294,0.074795,66859.0,66858.0,0.0895638]
[1729019694697,0.17,66860.0,66853.0,0.1055338]
[1729019694889,1.21,66864.0,66853.0,0.01597]
[1729019695194,1.11479,66864.0,66863.0,0.07479]
[1729019696196,1.04,66864.0,66863.0,0.24479]
[1729019696404,1.048,66864.0,66863.0,0.24479]
[1729019696896,1.04,66864.0,66863.0,0.24479]
[1729019697098,1.054,66864.0,66863.0,0.24579]
[1729019697300,1.06,66864.0,66863.0,0.24679]
[1729019698186,0.02,66864.0,66863.0,0.24679]
[1729019698391,0.074774,66878.0,66875.0,0.074776]
[1729019698600,0.074775,66877.0,66876.0,0.074775]
[1729019698806,0.074775,66877.0,66876.0,0.074776]
[1729019698807,1.04,66877.0,66876.0,0.074776]
[1729019699294,1.114775,66877.0,66875.0,0.17]
[1729019699495,1.04,66877.0,66876.0,0.074776]
[1729019699901,1.114775,66877.0,66876.0,0.074776]
[1729019700197,1.047,66877.0,66876.0,0.076776]
[1729019700396,1.055,66877.0,66876.0,0.002]
[1729019700604,1.055,66877.0,66876.0,0.076776]
[1729019700791,1.129775,66877.0,66876.0,0.002]
[1729019701394,1.055,66877.0,66876.0,0.002]
[1729019701589,1.055,66877.0,66876.0,0.076776]
[1729019701792,0.015,66877.0,66876.0,0.076776]
[1729019702006,0.015,66877.0,66876.0,0.246776]
[1729019703009,0.015,66877.0,66876.0,0.076776]
[1729019704315,1.04,66887.0,66886.0,0.074765]
[1729019704499,1.04,66887.0,66886.0,0.605565]
[1729019705904,1.04,66887.0,66886.0,1.205565]
[1729019706109,0.00224266,66907.0,66891.0,0.074759]
[1729019706303,0.07698466,66907.0,66906.0,0.17]
[1729019706505,1.11698466,66907.0,66906.0,0.244742]
[1729019707513,1.12398466,66907.0,66906.0,0.17]
[1729019708312,1.12398466,66907.0,66906.0,0.171]
[1729019708504,1.29398466,66907.0,66906.0,0.001]
[1729019708706,1.89398466,66907.0,66899.0,0.3608]
[1729019709017,0.074749,66900.0,66899.0,0.3608]
[1729019709221,0.17,66905.0,66899.0,0.3608]
[1729019709222,0.074746,66903.0,66899.0,0.3608]
[1729019709512,0.074749,66900.0,66899.0,0.5308]
[1729019709714,0.074749,66900.0,66899.0,0.60555]
[1729019709897,0.074749,66900.0,66899.0,0.60655]
[1729019710296,0.244749,66900.0,66899.0,0.3618]
[1729019710510,0.244749,66900.0,66899.0,0.3608]
[1729019710811,0.244749,66900.0,66899.0,0.001]
[1729019711307,0.074749,66900.0,66899.0,0.002]
[1729019711711,0.001,66903.0,66902.0,0.074747]
[1729019711712,0.0100122,66903.0,66902.0,0.074747]
[1729019711900,0.001,66903.0,66902.0,0.074747]
[1729019712100,0.074744,66905.0,66903.0,0.074745]
[1729019712610,0.17,66904.0,66899.0,0.36412]
[1729019712817,0.001,66903.0,66902.0,0.001]
[1729019713111,0.245746,66903.0,66902.0,0.001]
[1729019713306,0.245746,66903.0,66899.0,0.3618]
[1729019713307,0.17,66903.0,66899.0,0.3618]
[1729019713504,0.074749,66900.0,66899.0,0.3618]
[1729019713703,0.074749,66900.0,66899.0,0.3608]
[1729019713908,0.074749,66900.0,66899.0,0.001]
[1729019715511,0.074751,66898.0,66897.0,0.3608]
[1729019716210,0.074753,66897.0,66895.0,0.01497]
[1729019716898,0.074753,66897.0,66895.0,0.089724]
[1729019717099,0.074753,66897.0,66895.0,0.259724]
[1729019717300,0.001,66898.0,66897.0,0.074752]
[1729019717807,0.171,66898.0,66895.0,0.01597]
[1729019718009,0.074754,66896.0,66895.0,0.01597]
[1729019718402,0.074754,66896.0,66895.0,0.01697]
[1729019718808,0.074754,66896.0,66895.0,0.091725]
[1729019719010,0.074754,66896.0,66895.0,0.090725]
[1729019719209,0.075754,66896.0,66895.0,0.091725]
[1729019719807,0.001,66896.0,66895.0,0.260725]
[1729019720811,0.001,66896.0,66895.0,0.261725]
[1729019721104,0.075754,66896.0,66895.0,0.261725]
[1729019721309,0.075754,66896.0,66895.0,0.01697]
[1729019721713,0.074757,66893.0,66882.0,0.3608]
[1729019721921,0.244768,66883.0,66882.0,0.3608]
[1729019722213,1.114768,66883.0,66882.0,0.3608]
[1729019722416,1.114768,66883.0,66882.0,0.435569]
[1729019722718,0.074762,66889.0,66886.0,0.074764]
[1729019723021,0.074762,66889.0,66887.0,0.074763]
[1729019723216,0.1827,66892.0,66887.0,0.074763]
[1729019723217,1.04,66888.0,66887.0,0.074763]
[1729019723421,1.114763,66888.0,66887.0,0.074763]
[1729019724219,0.074764,66887.0,66886.0,0.17]
[1729019724418,0.07476,66891.0,66886.0,0.17]
[1729019724727,0.04206266,66890.0,66884.0,0.01496]
[1729019724915,0.10083795,66892.0,66888.0,0.074762]
[1729019724916,1.04,66889.0,66888.0,0.074762]
[1729019725107,1.04,66889.0,66884.0,0.01496]
[1729019725313,0.074765,66887.0,66886.0,0.074765]
[1729019726419,0.11695701,66887.0,66886.0,0.074765]
[1729019726620,0.11695701,66887.0,66886.0,0.075765]
[1729019726917,0.11695701,66887.0,66886.0,0.001]
[1729019727220,0.074766,66885.0,66884.0,0.01496]
[1729019727419,0.11695801,66885.0,66884.0,0.01496]
[1729019727822,0.11695801,66885.0,66884.0,0.089727]
[1729019728712,0.04219201,66885.0,66884.0,0.259727]
[1729019729316,0.04219201,66885.0,66884.0,0.260727]
[1729019729515,0.002,66885.0,66884.0,0.860727]
[1729019729725,0.04235848,66885.0,66884.0,1.403347]
[1729019729927,0.074755,66896.0,66895.0,0.074755]
[1729019730224,0.074755,66896.0,66895.0,0.41216088]
[1729019730420,0.074755,66896.0,66895.0,0.41210071]
[1729019730621,0.074755,66896.0,66895.0,0.41210159]
[1729019731118,0.074755,66896.0,66895.0,0.34651363]
[1729019732023,0.076755,66896.0,66895.0,0.34751363]
[1729019732425,0.076755,66896.0,66895.0,0.34851363]
[1729019732617,0.002,66896.0,66895.0,0.34851363]
[1729019733531,0.076754,66896.0,66895.0,0.34851363]
[1729019733723,0.076754,66896.0,66895.0,0.09478602]
[1729019733922,0.076754,66896.0,66895.0,0.16938061]
[1729019734120,0.076754,66896.0,66895.0,0.07659459]
[1729019734318,0.076754,66896.0,66895.0,0.07660738]
[1729019734521,0.076754,66896.0,66895.0,0.002]
[1729019735223,0.076754,66896.0,66895.0,0.1694708]
[1729019735531,0.076754,66896.0,66895.0,0.07660738]
[1729019737018,0.12570805,66896.0,66895.0,0.002]
[1729019737930,0.074756,66894.0,66893.0,0.28799585]
[1729019738118,0.29371005,66894.0,66893.0,0.28799585]
[1729019739123,0.29371005,66894.0,66893.0,0.28899585]
[1729019739523,0.29371005,66894.0,66893.0,0.28999585]
[1729019739524,0.245756,66894.0,66893.0,0.28999585]
[1729019739834,0.28713342,66894.0,66893.0,0.28999585]
[1729019740031,0.33517351,66894.0,66893.0,0.28999585]
[1729019740229,0.34406584,66894.0,66893.0,0.28999585]
[1729019740619,1.38406584,66894.0,66893.0,0.28999585]
[1729019741329,1.43874274,66894.0,66893.0,0.002]
[1729019741833,1.57187474,66894.0,66893.0,0.002]
[1729019742131,1.67147474,66894.0,66893.0,0.002]
[1729019742524,1.53834274,66894.0,66893.0,0.002]
[1729019742921,2.49914274,66894.0,66884.0,0.01496]
[1729019743123,2.49914274,66894.0,66872.0,0.07478]
[1729019743124,0.074776,66876.0,66872.0,0.07478]
[1729019743325,0.11615342,66876.0,66872.0,0.07478]
[1729019743522,0.11615342,66876.0,66875.0,0.435577]
[1729019743733,0.04137742,66876.0,66875.0,0.435577]
[1729019743937,0.04137742,66876.0,66875.0,0.605577]
[1729019744726,0.11615342,66876.0,66875.0,0.605577]
[1729019745034,0.074776,66876.0,66875.0,0.69975564]
[1729019745625,1.14336,66894.0,66889.0,0.074759]
[1729019745626,0.074761,66890.0,66889.0,0.074759]
[1729019745825,0.074758,66892.0,66891.0,0.074757]
[1729019746034,1.04,66894.0,66891.0,0.16826731]
[1729019746335,0.074761,66889.0,66888.0,0.3608]
[1729019746938,0.244761,66889.0,66888.0,0.3608]
[1729019747136,0.244761,66889.0,66888.0,0.45446481]
[1729019747326,0.244761,66889.0,66888.0,0.52908346]
[1729019747732,0.244761,66889.0,66888.0,0.43541865]
[1729019748433,0.245761,66889.0,66888.0,0.43641865]
[1729019748830,0.003,66889.0,66888.0,0.53129514]
[1729019749034,0.003,66889.0,66888.0,0.97981514]
[1729019749229,0.003,66889.0,66888.0,1.09120304]
[1729019749429,0.003,66889.0,66888.0,1.18320304]
[1729019750331,0.003,66889.0,66888.0,1.07181514]
[1729019750526,0.003,66889.0,66888.0,1.1831511]
[1729019750730,0.003,66889.0,66888.0,0.7346311]
[1729019751133,0.003,66889.0,66888.0,0.73429545]
[1729019751530,0.001,66889.0,66888.0,0.73329545]
[1729019751748,0.002,66889.0,66888.0,0.73329545]
[1729019751933,0.003,66889.0,66888.0,0.73329545]
[1729019752133,0.003,66889.0,66888.0,0.60318927]
[1729019753238,0.077761,66889.0,66888.0,0.528563]
[1729019753429,0.077761,66889.0,66888.0,0.3618]
[1729019754845,0.08674354,66889.0,66888.0,0.3618]
[1729019755945,0.077761,66889.0,66888.0,0.3618]
[1729019757235,0.077761,66889.0,66888.0,0.001]
[1729019758041,0.268061,66889.0,66888.0,0.001]
[1729019758244,0.268061,66889.0,66879.0,0.01496]
[1729019758245,0.868061,66889.0,66879.0,0.01496]
[1729019758446,0.244771,66880.0,66879.0,0.01496]
[1729019758848,1.284771,66880.0,66879.0,0.01496]
[1729019759152,2.503331,66880.0,66871.0,0.05970174]
[1729019759339,2.503331,66880.0,66861.0,0.36304306]
[1729019759340,0.074787,66866.0,66861.0,0.36304306]
[1729019759531,0.074792,66862.0,66861.0,0.3608]
[1729019759737,0.074792,66862.0,66855.0,0.01497]
[1729019759738,0.074798,66856.0,66855.0,0.01497]
[1729019760140,1.114798,66856.0,66855.0,0.10890777]
[1729019760439,1.04,66856.0,66855.0,0.27325427]
[1729019760645,1.04,66856.0,66855.0,0.18370166]
[1729019760845,1.04,66856.0,66855.0,0.29556651]
[1729019761037,0.07479,66864.0,66860.0,0.074793]
[1729019761235,0.0935,66879.0,66863.0,0.24461594]
[1729019761544,0.074783,66870.0,66866.0,0.0746151]
[1729019761850,0.074783,66870.0,66862.0,0.0746151]
[1729019761851,0.3608,66868.0,66862.0,0.0746151]
[1729019762033,0.3608,66868.0,66861.0,0.008]
[1729019762034,0.074792,66862.0,66861.0,0.0826151]
[1729019762241,0.074792,66862.0,66861.0,0.008]
[1729019762546,0.99,66867.0,66859.0,0.0746151]
[1729019762547,0.074791,66863.0,66859.0,0.0746151]
[1729019762749,0.99,66867.0,66860.0,0.0746151]
[1729019762939,0.99,66867.0,66859.0,0.074794]
[1729019762940,0.074794,66861.0,66859.0,0.1494091]
[1729019763135,0.074794,66861.0,66860.0,0.0746151]
[1729019763339,0.074787,66866.0,66858.0,0.0746151]
[1729019763641,1.33363458,66867.0,66858.0,0.0746151]
[1729019763841,1.33363458,66867.0,66858.0,0.07448423]
[1729019763842,0.26,66861.0,66858.0,0.07448423]
[1729019764039,0.26,66861.0,66855.0,0.37577]
[1729019764040,0.26,66861.0,66855.0,0.45025423]
[1729019764244,0.074798,66856.0,66855.0,0.01497]
[1729019764453,0.074811,66845.0,66841.0,0.08945423]
[1729019764751,0.074814,66842.0,66841.0,0.01497]
[1729019765048,1.064814,66842.0,66841.0,0.01497]
[1729019766147,1.065814,66842.0,66841.0,0.01497]
[1729019766343,1.065814,66842.0,66841.0,0.01797]
[1729019768055,0.001,66842.0,66841.0,0.092785]
[1729019768353,0.001,66842.0,66841.0,0.01797]
[1729019768554,0.001,66842.0,66841.0,0.092785]
[1729019769147,0.075814,66842.0,66841.0,0.01797]
[1729019770151,0.075814,66842.0,66841.0,0.092785]
[1729019770152,0.001,66842.0,66841.0,0.092785]
[1729019770643,0.075814,66842.0,66841.0,0.01797]
[1729019773046,0.675814,66842.0,66841.0,0.01797]
[1729019773557,2.114654,66842.0,66841.0,0.01797]
[1729019773856,1.67477545,66842.0,66841.0,0.003]
[1729019774358,0.074827,66830.0,66829.0,0.3608]
[1729019774656,0.07483,66828.0,66827.0,0.01497]
[1729019774962,1.06483,66828.0,66827.0,0.01497]
[1729019775958,1.06483,66828.0,66827.0,0.012]
[1729019775959,2.11475,66828.0,66827.0,0.012]
[1729019776263,2.11475,66828.0,66816.0,0.00224443]
[1729019776264,0.074841,66818.0,66816.0,0.00224443]
[1729019776453,0.334842,66817.0,66816.0,0.00224443]
[1729019778567,0.34971015,66817.0,66816.0,0.00224443]
[1729019779264,0.35071015,66817.0,66816.0,0.00224443]
[1729019780764,0.074845,66814.0,66813.0,0.37577]
[1729019781356,0.074845,66814.0,66813.0,0.01497]
[1729019781756,1.049,66814.0,66803.0,0.3608]
[1729019781952,0.334857,66804.0,66803.0,0.3608]
[1729019782358,1.324857,66804.0,66803.0,0.3608]
[1729019783165,1.324857,66804.0,66803.0,0.3728]
[1729019784459,1.325857,66804.0,66803.0,0.3748]
[1729019784763,1.326857,66804.0,66803.0,0.3748]
[1729019785665,1.33607842,66804.0,66803.0,0.3748]
[1729019785873,1.59607842,66804.0,66797.0,0.3608]
[1729019786171,0.52,66790.0,66760.0,0.01499]
[1729019786463,0.26,66764.0,66763.0,0.074903]
[1729019786666,0.26,66764.0,66762.0,0.0975]
[1729019786667,0.3608,66767.0,66762.0,0.0975]
[1729019786864,0.3608,66767.0,66764.0,0.074901]
[1729019787166,0.3608,66767.0,66762.0,0.0975]
[1729019787361,0.26,66763.0,66762.0,0.0975]
[1729019787668,0.074904,66762.0,66761.0,0.0959]
[1729019788355,0.074904,66762.0,66760.0,0.01499]
[1729019788559,0.3608,66761.0,66760.0,0.089896]
[1729019789465,0.3608,66761.0,66760.0,0.095896]
[1729019791066,0.3618,66761.0,66760.0,0.096896]
[1729019791271,0.001,66761.0,66760.0,0.096896]
[1729019791859,0.002,66761.0,66760.0,0.096896]
[1729019792062,0.26,66764.0,66760.0,0.696896]
[1729019792272,0.26,66764.0,66763.0,0.074903]
[1729019792666,0.6208,66768.0,66767.0,0.074898]
[1729019793071,0.26,66768.0,66767.0,0.074898]
[1729019794973,0.262,66768.0,66767.0,0.083898]
[1729019795374,0.002,66768.0,66767.0,0.083898]
[1729019795960,1.18076,66773.0,66767.0,0.009]
[1729019796166,1.18,66773.0,66772.0,0.074892]
[1729019797166,1.181,66773.0,66772.0,0.074892]
[1729019797475,1.182,66773.0,66772.0,0.074892]
[1729019798367,1.181,66773.0,66772.0,0.074892]
[1729019798677,0.261,66773.0,66772.0,0.078892]
[1729019800278,0.3608,66782.0,66781.0,0.074882]
[1729019801363,0.3658,66782.0,66781.0,0.074882]
[1729019801568,0.3758,66782.0,66781.0,0.074882]
[1729019802372,0.00224693,66783.0,66782.0,0.074881]
[1729019802569,0.00224693,66783.0,66779.0,0.3608]
[1729019802570,0.26,66795.0,66783.0,0.07488]
[1729019802767,0.26,66795.0,66784.0,0.174179]
[1729019802968,0.4623,66798.0,66784.0,0.174179]
[1729019802969,0.3608,66798.0,66797.0,0.074864]
[1729019803174,0.36969177,66798.0,66797.0,0.074864]
[1729019803375,0.074867,66795.0,66792.0,0.07487]
[1729019803677,0.26,66793.0,66792.0,0.07487]
[1729019804070,1.18,66793.0,66792.0,0.07487]
[1729019804267,0.92,66793.0,66792.0,0.07487]
[1729019804574,0.92,66793.0,66792.0,0.07587]
[1729019805272,0.92,66793.0,66792.0,0.07487]
[1729019805579,0.928,66793.0,66792.0,0.07587]
[1729019806075,0.928,66793.0,66792.0,0.07687]
[1729019806076,0.94,66793.0,66792.0,0.07687]
[1729019806378,0.94,66793.0,66792.0,0.43767]
[1729019806568,0.02,66793.0,66792.0,0.43767]
[1729019806771,0.074852,66808.0,66806.0,0.074854]
[1729019807064,0.00224644,66809.0,66798.0,0.3608]
[1729019807264,0.00224644,66809.0,66802.0,0.074859]
[1729019807265,0.074856,66805.0,66802.0,0.074859]
[1729019807469,0.00224644,66809.0,66804.0,0.3608]
[1729019807675,0.00224644,66809.0,66808.0,0.074852]
[1729019808078,0.88224644,66809.0,66808.0,0.074852]
[1729019809374,0.88224644,66809.0,66806.0,0.002]
[1729019809678,0.88524644,66809.0,66808.0,0.001]
[1729019809877,0.96009744,66809.0,66808.0,0.001]
[1729019810781,0.96009744,66809.0,66808.0,0.075852]
[1729019811368,0.96009744,66809.0,66808.0,0.001]
[1729019813787,1.13009744,66809.0,66808.0,0.001]
[1729019814473,0.88524644,66809.0,66808.0,0.075852]
[1729019814679,0.88524644,66809.0,66808.0,0.245852]
[1729019815688,0.00524644,66809.0,66808.0,0.245852]
[1729019816789,0.00524644,66809.0,66808.0,0.075852]
[1729019817084,0.08009744,66809.0,66808.0,0.075852]
[1729019817781,0.00524644,66809.0,66808.0,0.245852]
[1729019818180,0.25009744,66809.0,66808.0,0.075852]
[1729019818982,0.25009744,66809.0,66808.0,0.08485621]
[1729019819373,0.25009744,66809.0,66808.0,0.001]
[1729019819580,0.25009744,66809.0,66795.0,0.08954245]
[1729019819581,0.074857,66804.0,66797.0,0.05941724]
[1729019819781,0.074857,66804.0,66792.0,0.43509083]
[1729019819782,0.17,66801.0,66792.0,0.06105724]
[1729019819978,0.074871,66791.0,66788.0,0.05941724]
[1729019820378,0.074871,66791.0,66789.0,0.074873]
[1729019820787,0.074871,66791.0,66789.0,0.05941724]
[1729019821291,0.074867,66795.0,66793.0,0.074869]
[1729019821486,0.00886782,66798.0,66793.0,0.13428624]
[1729019821487,0.074868,66794.0,66793.0,0.13428624]
[1729019821876,0.00886782,66798.0,66797.0,0.075864]
[1729019822083,0.3608,66803.0,66802.0,0.074859]
[1729019822282,0.695644,66816.0,66802.0,0.074859]
[1729019822283,0.3608,66822.0,66803.0,0.01498]
[1729019822586,0.3608,66822.0,66819.0,0.33484]
[1729019822587,0.074839,66820.0,66819.0,0.33484]
[1729019822796,0.074839,66820.0,66819.0,0.07484]
[1729019823087,0.88,66821.0,66820.0,0.074839]
[1729019823689,0.88,66821.0,66817.0,0.074842]
[1729019823690,0.954838,66821.0,66817.0,0.074842]
[1729019824290,0.88,66821.0,66820.0,0.074839]
[1729019825186,0.88,66821.0,66820.0,1.123799]
[1729019825491,0.889,66821.0,66820.0,1.125799]
[1729019825693,0.009,66821.0,66820.0,1.125799]
[1729019826889,0.88,66827.0,66825.0,0.074832]
[1729019827087,0.88,66827.0,66825.0,0.05947364]
[1729019827289,0.88,66827.0,66826.0,0.074832]
[1729019827491,0.954831,66827.0,66826.0,0.074832]
[1729019828688,0.958831,66827.0,66826.0,0.074832]
[1729019828888,0.885,66827.0,66826.0,0.074832]
[1729019829088,0.959831,66827.0,66826.0,0.074832]
[1729019829287,0.074832,66826.0,66825.0,0.001]
[1729019829790,0.074832,66826.0,66824.0,0.3608]
[1729019830494,0.88576,66827.0,66810.0,0.3608]
[1729019830495,0.074841,66818.0,66810.0,0.3608]
[1729019830793,0.334841,66818.0,66810.0,0.3608]
[1729019830996,0.334841,66818.0,66804.0,0.5412]
[1729019830997,0.334841,66818.0,66811.0,0.07709299]
[1729019831384,0.334841,66818.0,66812.0,0.074847]
[1729019831585,0.334841,66818.0,66811.0,0.00224499]
[1729019831892,0.334841,66818.0,66817.0,0.01498]
[1729019832693,0.335841,66818.0,66817.0,0.01598]
[1729019833695,0.335841,66818.0,66817.0,0.01698]
[1729019834501,0.336841,66818.0,66817.0,0.01698]
[1729019835002,0.262,66818.0,66817.0,0.01698]
[1729019835190,0.262,66818.0,66817.0,0.54601421]
[1729019835191,0.002,66818.0,66817.0,0.54601421]
[1729019835388,0.002,66818.0,66817.0,1.25703775]
[1729019835595,0.002,66818.0,66817.0,0.65703775]
[1729019836389,0.001,66818.0,66817.0,0.6681856]
[1729019837004,0.074833,66825.0,66824.0,0.074834]
[1729019837304,0.074833,66825.0,66824.0,0.16822621]
[1729019837502,0.074833,66825.0,66824.0,0.16736707]
[1729019837801,0.074833,66825.0,66824.0,0.09253307]
[1729019838196,0.074833,66825.0,66824.0,0.16709762]
[1729019838593,0.075833,66825.0,66824.0,0.16709762]
[1729019838807,0.076833,66825.0,66824.0,0.16809762]
[1729019839001,1.125753,66825.0,66824.0,0.001]
[1729019839305,0.074838,66821.0,66819.0,0.07456455]
[1729019839493,0.07484,66819.0,66818.0,0.07456455]
[1729019839693,0.07484,66819.0,66818.0,0.16733728]
[1729019840396,0.07484,66819.0,66818.0,0.09277273]
[1729019842205,0.07584,66819.0,66818.0,0.09377273]
[1729019842607,0.07584,66819.0,66818.0,0.001]
[1729019842991,0.07684,66819.0,66818.0,0.002]
[1729019847508,1.1258,66819.0,66818.0,0.002]
[1729019847701,1.1258,66819.0,66811.0,0.00224499]
[1729019847702,0.074848,66812.0,66811.0,0.00224499]
[1729019847903,0.00276,66819.0,66818.0,0.074841]
[1729019848204,0.882,66819.0,66818.0,0.074841]
[1729019848800,0.95584,66819.0,66818.0,0.074841]
[1729019849103,0.074842,66817.0,66815.0,0.074843]
[1729019849497,0.02991048,66817.0,66816.0,0.09271423]
[1729019849705,0.074842,66817.0,66816.0,0.09271423]
[1729019850109,0.334842,66817.0,66816.0,0.09271423]
[1729019850512,0.336842,66817.0,66816.0,0.09271423]
[1729019850808,1.746642,66817.0,66812.0,0.07464169]
[1729019851007,1.746642,66817.0,66796.0,0.074866]
[1729019851008,0.074851,66809.0,66800.0,0.08955744]
[1729019851207,0.074851,66809.0,66790.0,0.36304575]
[1729019851208,0.955657,66804.0,66797.0,0.08955744]
[1729019851511,0.955657,66804.0,66795.0,0.08955744]